[Event "Late-Titled-Tuesday-Blitz-September-26-2023"]
[Site "Chess.com"]
[Date "2023.09.26"]
[Round "6"]
[White "gordonzyxu"]
[Black "jcmesafischer"]
[Result "1-0"]
[WhiteElo "2180"]
[BlackElo "2323"]
[TimeControl "180+1"]
[EndTime "15:02:19 PDT"]
[Termination "gordonzyxu won by checkmate"]

1. e4 {[%clk 0:03:00.9]} 1... c5 {[%clk 0:02:59.3]} 2. Nf3 {[%clk 0:03:01.1]}
2... d6 {[%clk 0:02:59.4]} 3. Bb5+ {[%clk 0:03:01.8]} 3... Nd7 {[%clk
0:02:57.5]} 4. Ba4 {[%clk 0:03:02.2]} 4... Nf6 {[%clk 0:02:57]} 5. O-O {[%clk
0:03:02.7]} 5... Nxe4 {[%clk 0:02:52.8]} 6. Re1 {[%clk 0:03:02.6]} 6... Nf6
{[%clk 0:02:52]} 7. d4 {[%clk 0:03:02.8]} 7... e6 {[%clk 0:02:48.5]} 8. d5
{[%clk 0:02:58.2]} 8... e5 {[%clk 0:02:43.6]} 9. Nxe5 {[%clk 0:02:58.5]} 9...
dxe5 {[%clk 0:02:40.3]} 10. Rxe5+ {[%clk 0:02:59.4]} 10... Be7 {[%clk
0:02:35.9]} 11. d6 {[%clk 0:03:00.1]} 11... Qa5 {[%clk 0:02:01.3]} 12. Rxe7+
{[%clk 0:02:51.2]} 12... Kf8 {[%clk 0:01:59.7]} 13. Bb3 {[%clk 0:02:42.9]} 13...
c4 {[%clk 0:01:51.7]} 14. Bxc4 {[%clk 0:02:41.9]} 14... Ne5 {[%clk 0:01:51.9]}
15. Bb3 {[%clk 0:02:37.1]} 15... Be6 {[%clk 0:01:45.4]} 16. Bd2 {[%clk
0:02:22.1]} 16... Qc5 {[%clk 0:01:23]} 17. Be3 {[%clk 0:02:16.1]} 17... Qc6
{[%clk 0:01:23.4]} 18. Bxe6 {[%clk 0:02:10.9]} 18... fxe6 {[%clk 0:01:24.3]} 19.
Nc3 {[%clk 0:02:09.9]} 19... Rd8 {[%clk 0:01:20.1]} 20. Rxe6 {[%clk 0:02:09.5]}
20... Nc4 {[%clk 0:01:10.5]} 21. Bg5 {[%clk 0:02:07.8]} 21... Nxb2 {[%clk
0:01:04.7]} 22. Qd4 {[%clk 0:02:02.9]} 22... Qd7 {[%clk 0:00:24]} 23. Rxf6+
{[%clk 0:01:59.1]} 23... gxf6 {[%clk 0:00:21.4]} 24. Qxf6+ {[%clk 0:02:00]}
24... Kg8 {[%clk 0:00:21.9]} 25. Nd5 {[%clk 0:01:36.5]} 25... Re8 {[%clk
0:00:07]} 26. Ne7+ {[%clk 0:01:37.1]} 26... Rxe7 {[%clk 0:00:06.8]} 27. dxe7
{[%clk 0:01:38]} 27... Nc4 {[%clk 0:00:05]} 28. Qf8# {[%clk 0:01:37]} 1-0

[Event "Late-Titled-Tuesday-Blitz-September-26-2023"]
[Site "Chess.com"]
[Date "2023.09.26"]
[Round "6"]
[White "NicholasTakano"]
[Black "cassoulet"]
[Result "0-1"]
[WhiteElo "2406"]
[BlackElo "2741"]
[TimeControl "180+1"]
[EndTime "15:02:21 PDT"]
[Termination "cassoulet won by resignation"]

1. e4 {[%clk 0:03:00.9]} 1... g6 {[%clk 0:02:58.2]} 2. d4 {[%clk 0:03:00.4]}
2... Bg7 {[%clk 0:02:58.1]} 3. Nc3 {[%clk 0:03:01.1]} 3... d6 {[%clk 0:02:58.4]}
4. Be3 {[%clk 0:03:01.7]} 4... Nd7 {[%clk 0:02:58.9]} 5. Qd2 {[%clk 0:03:02.3]}
5... c6 {[%clk 0:02:59.3]} 6. O-O-O {[%clk 0:03:01.5]} 6... b5 {[%clk
0:02:59.9]} 7. f3 {[%clk 0:03:01.6]} 7... Qa5 {[%clk 0:02:59.2]} 8. Kb1 {[%clk
0:03:01.1]} 8... Ngf6 {[%clk 0:02:58.5]} 9. g4 {[%clk 0:03:00.7]} 9... h5 {[%clk
0:02:57.4]} 10. g5 {[%clk 0:03:00.4]} 10... Nh7 {[%clk 0:02:57.6]} 11. h4 {[%clk
0:03:00.1]} 11... Ba6 {[%clk 0:02:53.9]} 12. Nge2 {[%clk 0:02:58.7]} 12... b4
{[%clk 0:02:53.2]} 13. Nd5 {[%clk 0:02:24.7]} 13... cxd5 {[%clk 0:02:50.5]} 14.
exd5 {[%clk 0:02:25.6]} 14... Nb6 {[%clk 0:02:43.9]} 15. Nf4 {[%clk 0:02:14.6]}
15... Bxf1 {[%clk 0:02:41.7]} 16. Rhxf1 {[%clk 0:02:14.5]} 16... Nxd5 {[%clk
0:02:41.5]} 17. Nxd5 {[%clk 0:02:15]} 17... Qxd5 {[%clk 0:02:42.1]} 18. f4
{[%clk 0:02:15.2]} 18... O-O {[%clk 0:02:40.9]} 19. f5 {[%clk 0:02:14.8]} 19...
a5 {[%clk 0:02:34.8]} 20. Qd3 {[%clk 0:02:10.6]} 20... a4 {[%clk 0:02:23.5]} 21.
fxg6 {[%clk 0:02:08.2]} 21... fxg6 {[%clk 0:02:24.4]} 22. Qxg6 {[%clk
0:02:05.5]} 22... b3 {[%clk 0:02:24.5]} 23. cxb3 {[%clk 0:01:43.5]} 23... axb3
{[%clk 0:02:25.4]} 24. a3 {[%clk 0:01:43.8]} 24... Qc4 {[%clk 0:02:24.5]} 25.
Rxf8+ {[%clk 0:01:30.1]} 25... Rxf8 {[%clk 0:02:14.9]} 26. Rc1 {[%clk
0:01:29.5]} 26... Rf1 {[%clk 0:02:08.9]} 27. Rxf1 {[%clk 0:01:05.7]} 27... Qxf1+
{[%clk 0:02:09.8]} 28. Bc1 {[%clk 0:01:06]} 28... Nf8 {[%clk 0:02:05.8]} 29. Qe4
{[%clk 0:00:44]} 29... e6 {[%clk 0:02:05.3]} 30. Qe3 {[%clk 0:00:39.3]} 30...
Qf5+ {[%clk 0:02:01.1]} 31. Ka1 {[%clk 0:00:38.7]} 31... Qc2 {[%clk 0:02:00.4]}
32. Qc3 {[%clk 0:00:22.9]} 32... Bxd4 {[%clk 0:01:51.6]} 33. Qxc2 {[%clk
0:00:22.5]} 33... bxc2 {[%clk 0:01:52.5]} 34. Ka2 {[%clk 0:00:20.8]} 34... Ng6
{[%clk 0:01:50.9]} 35. b4 {[%clk 0:00:21.2]} 35... Nxh4 {[%clk 0:01:51.2]} 36.
Kb3 {[%clk 0:00:20.4]} 36... Nf5 {[%clk 0:01:50.8]} 37. Kxc2 {[%clk 0:00:20.8]}
37... h4 {[%clk 0:01:50.9]} 38. Bf4 {[%clk 0:00:20.1]} 38... h3 {[%clk
0:01:51.4]} 39. Kd3 {[%clk 0:00:19.4]} 39... Be5 {[%clk 0:01:51.7]} 0-1

[Event "Late-Titled-Tuesday-Blitz-September-26-2023"]
[Site "Chess.com"]
[Date "2023.09.26"]
[Round "6"]
[White "MajorCoast"]
[Black "maurovargas01"]
[Result "1-0"]
[WhiteElo "2273"]
[BlackElo "1904"]
[TimeControl "180+1"]
[EndTime "15:02:24 PDT"]
[Termination "MajorCoast won on time"]

1. c3 {[%clk 0:02:59.8]} 1... e5 {[%clk 0:02:55.2]} 2. d4 {[%clk 0:02:59.2]}
2... Nc6 {[%clk 0:02:49.5]} 3. dxe5 {[%clk 0:02:54.3]} 3... Nxe5 {[%clk
0:02:48.6]} 4. Nf3 {[%clk 0:02:54.9]} 4... Nc6 {[%clk 0:02:42.9]} 5. Bf4 {[%clk
0:02:48.5]} 5... d6 {[%clk 0:02:41.9]} 6. e3 {[%clk 0:02:48.8]} 6... Nf6 {[%clk
0:02:40.1]} 7. Bc4 {[%clk 0:02:47.6]} 7... Bg4 {[%clk 0:02:37.4]} 8. Qb3 {[%clk
0:02:41.7]} 8... d5 {[%clk 0:02:32.2]} 9. Qxb7 {[%clk 0:02:30.3]} 9... Na5
{[%clk 0:02:16]} 10. Bb5+ {[%clk 0:02:20.4]} 10... Bd7 {[%clk 0:01:53.2]} 11.
Bxd7+ {[%clk 0:02:17.9]} 11... Kxd7 {[%clk 0:01:36.1]} 12. Qxd5+ {[%clk
0:02:11.5]} 12... Nxd5 {[%clk 0:01:35.2]} 13. Ne5+ {[%clk 0:02:08.1]} 13... Kc8
{[%clk 0:01:25.9]} 14. b4 {[%clk 0:02:03]} 14... Nxf4 {[%clk 0:01:24.8]} 15.
exf4 {[%clk 0:02:01.3]} 15... Qe8 {[%clk 0:01:17.9]} 16. O-O {[%clk 0:01:59.9]}
16... Nb7 {[%clk 0:01:15.7]} 17. Re1 {[%clk 0:01:59.1]} 17... f6 {[%clk
0:01:09.1]} 18. Nf3 {[%clk 0:01:58.4]} 18... Qf7 {[%clk 0:01:00.1]} 19. Na3
{[%clk 0:01:57.5]} 19... Bd6 {[%clk 0:00:49.2]} 20. g3 {[%clk 0:01:55]} 20...
Re8 {[%clk 0:00:46.6]} 21. Red1 {[%clk 0:01:55.3]} 21... Nd8 {[%clk 0:00:38.3]}
22. Nb5 {[%clk 0:01:52.2]} 22... Nb7 {[%clk 0:00:21.9]} 23. Nfd4 {[%clk
0:01:45.5]} 23... a6 {[%clk 0:00:20.6]} 24. Na3 {[%clk 0:01:41.4]} 24... c5
{[%clk 0:00:13.7]} 25. bxc5 {[%clk 0:01:38]} 25... Bxc5 {[%clk 0:00:06.5]} 26.
Nf5 {[%clk 0:01:38.2]} 1-0

[Event "Late-Titled-Tuesday-Blitz-September-26-2023"]
[Site "Chess.com"]
[Date "2023.09.26"]
[Round "6"]
[White "Hikaru"]
[Black "Kombinator01"]
[Result "1-0"]
[WhiteElo "3175"]
[BlackElo "2431"]
[TimeControl "180+1"]
[EndTime "15:02:25 PDT"]
[Termination "Hikaru won on time"]

1. b4 {[%clk 0:03:00.9]} 1... e5 {[%clk 0:02:59.5]} 2. Bb2 {[%clk 0:03:01.2]}
2... Bxb4 {[%clk 0:02:59]} 3. Bxe5 {[%clk 0:03:01.4]} 3... Nf6 {[%clk
0:02:58.3]} 4. e3 {[%clk 0:03:01.7]} 4... d5 {[%clk 0:02:57.4]} 5. c3 {[%clk
0:03:01.9]} 5... Ba5 {[%clk 0:02:54.6]} 6. Qa4+ {[%clk 0:02:58.3]} 6... Nc6
{[%clk 0:02:54.1]} 7. Bb5 {[%clk 0:02:58]} 7... Bb6 {[%clk 0:02:50.2]} 8. Bxc6+
{[%clk 0:02:58.5]} 8... bxc6 {[%clk 0:02:49.8]} 9. Qxc6+ {[%clk 0:02:59.4]} 9...
Bd7 {[%clk 0:02:47.9]} 10. Bxf6 {[%clk 0:02:59.8]} 10... Bxc6 {[%clk 0:02:42]}
11. Bxd8 {[%clk 0:03:00]} 11... Rxd8 {[%clk 0:02:42.9]} 12. Nf3 {[%clk
0:02:59.3]} 12... Bb5 {[%clk 0:02:38]} 13. a4 {[%clk 0:02:56.8]} 13... Ba6
{[%clk 0:02:30.9]} 14. d4 {[%clk 0:02:52.5]} 14... c6 {[%clk 0:02:26.4]} 15. Ne5
{[%clk 0:02:52.1]} 15... Rd6 {[%clk 0:02:21.1]} 16. Kd2 {[%clk 0:02:49.7]} 16...
f6 {[%clk 0:02:19.7]} 17. Nd3 {[%clk 0:02:49.8]} 17... Ke7 {[%clk 0:02:12.8]}
18. Nb4 {[%clk 0:02:48.2]} 18... Bc8 {[%clk 0:02:07.9]} 19. a5 {[%clk
0:02:48.4]} 19... Bc7 {[%clk 0:02:06.6]} 20. Ke2 {[%clk 0:02:43.1]} 20... Kf7
{[%clk 0:01:59.2]} 21. Nd2 {[%clk 0:02:42]} 21... Bg4+ {[%clk 0:01:58.3]} 22. f3
{[%clk 0:02:42.2]} 22... Bf5 {[%clk 0:01:55.3]} 23. Rhc1 {[%clk 0:02:38.6]}
23... Re8 {[%clk 0:01:55.2]} 24. Na6 {[%clk 0:02:29.6]} 24... Bd8 {[%clk
0:01:36.1]} 25. Nc5 {[%clk 0:02:29.4]} 25... Bc8 {[%clk 0:01:27.8]} 26. Kf2
{[%clk 0:02:28.5]} 26... f5 {[%clk 0:01:23.9]} 27. f4 {[%clk 0:02:28.9]} 27...
g5 {[%clk 0:01:21.8]} 28. Nf3 {[%clk 0:02:28.8]} 28... g4 {[%clk 0:00:59.3]} 29.
Ne5+ {[%clk 0:02:28.9]} 29... Kg7 {[%clk 0:00:59.9]} 30. Rcb1 {[%clk 0:02:27.7]}
30... Bc7 {[%clk 0:00:57.6]} 31. c4 {[%clk 0:02:25]} 31... Rh6 {[%clk
0:00:56.5]} 32. Kg1 {[%clk 0:02:24.9]} 32... Rd6 {[%clk 0:00:50.5]} 33. Rc1
{[%clk 0:02:24.3]} 33... h5 {[%clk 0:00:46.5]} 34. cxd5 {[%clk 0:02:24.5]} 34...
Rxd5 {[%clk 0:00:43.4]} 35. a6 {[%clk 0:02:20.4]} 35... h4 {[%clk 0:00:38.6]}
36. Ncd3 {[%clk 0:02:20]} 36... Re6 {[%clk 0:00:32.4]} 37. Nb4 {[%clk
0:02:19.4]} 37... Rb5 {[%clk 0:00:19.9]} 38. Nbxc6 {[%clk 0:02:18.2]} 38... Bxe5
{[%clk 0:00:16.8]} 39. dxe5 {[%clk 0:02:15.5]} 39... Rb6 {[%clk 0:00:08.7]} 40.
Nd4 {[%clk 0:02:15.4]} 40... Re8 {[%clk 0:00:09.1]} 41. Rc7+ {[%clk 0:02:14.1]}
41... Kg6 {[%clk 0:00:08.5]} 42. Rxa7 {[%clk 0:02:14.5]} 42... Rb2 {[%clk
0:00:05.8]} 43. Rc1 {[%clk 0:02:10.4]} 1-0

[Event "Late-Titled-Tuesday-Blitz-September-26-2023"]
[Site "Chess.com"]
[Date "2023.09.26"]
[Round "6"]
[White "KamlaPasand"]
[Black "TheMagician"]
[Result "1/2-1/2"]
[WhiteElo "2435"]
[BlackElo "2259"]
[TimeControl "180+1"]
[EndTime "15:02:27 PDT"]
[Termination "Game drawn by repetition"]

1. e4 {[%clk 0:02:18.4]} 1... e5 {[%clk 0:03:00.9]} 2. Nf3 {[%clk 0:02:18]} 2...
Nc6 {[%clk 0:02:59.2]} 3. Bc4 {[%clk 0:02:18.6]} 3... Bc5 {[%clk 0:02:57.9]} 4.
c3 {[%clk 0:02:19.1]} 4... Bb6 {[%clk 0:02:57.1]} 5. O-O {[%clk 0:02:17.2]} 5...
Qe7 {[%clk 0:02:57.2]} 6. d4 {[%clk 0:02:14.5]} 6... d6 {[%clk 0:02:56.8]} 7.
dxe5 {[%clk 0:01:36.7]} 7... Nxe5 {[%clk 0:02:56.5]} 8. Nxe5 {[%clk 0:01:36.8]}
8... Qxe5 {[%clk 0:02:55]} 9. Qf3 {[%clk 0:01:36.9]} 9... Nf6 {[%clk 0:02:53.4]}
10. Bf4 {[%clk 0:01:36.7]} 10... Qxe4 {[%clk 0:02:41.5]} 11. Qxe4+ {[%clk
0:01:35.4]} 11... Nxe4 {[%clk 0:02:41.7]} 12. Nd2 {[%clk 0:01:34.6]} 12... Nxd2
{[%clk 0:02:38.1]} 13. Bxd2 {[%clk 0:01:35.5]} 13... Be6 {[%clk 0:02:37.5]} 14.
Rae1 {[%clk 0:01:34.8]} 14... Kd7 {[%clk 0:02:37.3]} 15. Bb5+ {[%clk 0:01:35]}
15... c6 {[%clk 0:02:37.4]} 16. Ba4 {[%clk 0:01:35.4]} 16... Rhe8 {[%clk
0:02:32.9]} 17. a3 {[%clk 0:01:35.2]} 17... Bc4 {[%clk 0:02:31.7]} 18. Rxe8
{[%clk 0:01:35.1]} 18... Rxe8 {[%clk 0:02:31.1]} 19. Re1 {[%clk 0:01:35]} 19...
Rxe1+ {[%clk 0:02:31]} 20. Bxe1 {[%clk 0:01:35.9]} 20... d5 {[%clk 0:02:26.6]}
21. Bc2 {[%clk 0:01:36.1]} 21... g6 {[%clk 0:02:26]} 22. g3 {[%clk 0:01:34.2]}
22... Be2 {[%clk 0:02:25.8]} 23. Kg2 {[%clk 0:01:34]} 23... Bg4 {[%clk
0:02:23.6]} 24. Bd2 {[%clk 0:01:33.7]} 24... Ke6 {[%clk 0:02:19.2]} 25. Bd3
{[%clk 0:01:25.2]} 25... Bf5 {[%clk 0:02:10.2]} 26. Be2 {[%clk 0:01:19.3]} 26...
h5 {[%clk 0:02:10]} 27. f3 {[%clk 0:01:18.6]} 27... Bc2 {[%clk 0:02:05.7]} 28.
b4 {[%clk 0:01:14.9]} 28... f5 {[%clk 0:02:02.6]} 29. f4 {[%clk 0:01:13.5]}
29... Be4+ {[%clk 0:02:00.9]} 30. Kf1 {[%clk 0:01:13.6]} 30... Bc7 {[%clk
0:01:59.1]} 31. h4 {[%clk 0:01:11.7]} 31... a5 {[%clk 0:01:57.4]} 32. Ke1 {[%clk
0:01:08.9]} 32... b5 {[%clk 0:01:51.6]} 33. Be3 {[%clk 0:01:07.5]} 33... a4
{[%clk 0:01:50.4]} 34. Kd2 {[%clk 0:01:07.9]} 34... Bd8 {[%clk 0:01:49.4]} 35.
Bd4 {[%clk 0:01:06.8]} 35... Be7 {[%clk 0:01:41.7]} 36. Ke3 {[%clk 0:01:07.4]}
36... Kd7 {[%clk 0:01:40.7]} 37. Be5 {[%clk 0:01:06.8]} 37... Bc2 {[%clk
0:01:36.9]} 38. Kd4 {[%clk 0:01:06.8]} 38... Bb3 {[%clk 0:01:31.5]} 39. Bf1
{[%clk 0:01:06.1]} 39... c5+ {[%clk 0:01:25.8]} 40. bxc5 {[%clk 0:01:05.6]}
40... Kc6 {[%clk 0:01:25.8]} 41. Bd6 {[%clk 0:01:03.9]} 41... Bf6+ {[%clk
0:01:25.8]} 42. Be5 {[%clk 0:01:03.4]} 42... Be7 {[%clk 0:01:25.5]} 43. Bd6
{[%clk 0:01:02.3]} 43... Bf6+ {[%clk 0:01:25.5]} 44. Be5 {[%clk 0:00:59.2]}
44... Be7 {[%clk 0:01:25.2]} 1/2-1/2

[Event "Late-Titled-Tuesday-Blitz-September-26-2023"]
[Site "Chess.com"]
[Date "2023.09.26"]
[Round "6"]
[White "stregachess"]
[Black "LeninGuerra"]
[Result "0-1"]
[WhiteElo "2091"]
[BlackElo "2526"]
[TimeControl "180+1"]
[EndTime "15:02:33 PDT"]
[Termination "LeninGuerra won by resignation"]

1. d4 {[%clk 0:02:59.4]} 1... Nf6 {[%clk 0:02:59]} 2. Nf3 {[%clk 0:02:59.4]}
2... e6 {[%clk 0:02:59.5]} 3. Bf4 {[%clk 0:02:59.5]} 3... c5 {[%clk 0:02:58.5]}
4. e3 {[%clk 0:02:57.9]} 4... b6 {[%clk 0:02:58.5]} 5. Nbd2 {[%clk 0:02:56.9]}
5... Bb7 {[%clk 0:02:58.8]} 6. Nc4 {[%clk 0:02:55.4]} 6... d6 {[%clk 0:02:57.4]}
7. dxc5 {[%clk 0:02:54.8]} 7... e5 {[%clk 0:02:51.9]} 8. Bg3 {[%clk 0:02:45.4]}
8... bxc5 {[%clk 0:02:51.8]} 9. c3 {[%clk 0:02:42]} 9... Be7 {[%clk 0:02:50.3]}
10. Be2 {[%clk 0:02:36.9]} 10... O-O {[%clk 0:02:49.8]} 11. h3 {[%clk
0:02:37.3]} 11... e4 {[%clk 0:02:49.9]} 12. Nfd2 {[%clk 0:02:33.7]} 12... d5
{[%clk 0:02:49.4]} 13. Na3 {[%clk 0:02:25.8]} 13... Bd6 {[%clk 0:02:44.4]} 14.
Bxd6 {[%clk 0:02:17.4]} 14... Qxd6 {[%clk 0:02:45.3]} 15. O-O {[%clk 0:02:14.8]}
15... Nc6 {[%clk 0:02:41.7]} 16. Rb1 {[%clk 0:02:09.6]} 16... Qe5 {[%clk
0:02:28.3]} 17. Nc2 {[%clk 0:02:00.7]} 17... Rad8 {[%clk 0:02:16.5]} 18. Qc1
{[%clk 0:01:56.4]} 18... Bc8 {[%clk 0:02:04.6]} 19. Rd1 {[%clk 0:01:53.8]} 19...
Qg5 {[%clk 0:02:03.9]} 20. Kh1 {[%clk 0:01:51.3]} 20... Ne5 {[%clk 0:02:00.2]}
21. Nf1 {[%clk 0:01:47]} 21... Qh4 {[%clk 0:01:44.8]} 22. Kg1 {[%clk 0:01:42.9]}
22... Rd6 {[%clk 0:01:27.2]} 23. Qd2 {[%clk 0:01:35.7]} 23... Bxh3 {[%clk
0:01:22.8]} 24. Ng3 {[%clk 0:01:17.3]} 24... Nfg4 {[%clk 0:01:05.4]} 25. Qe1
{[%clk 0:01:13.9]} 25... Bxg2 {[%clk 0:00:55.3]} 26. Kxg2 {[%clk 0:01:01]} 26...
Qh2+ {[%clk 0:00:55.3]} 27. Kf1 {[%clk 0:01:00.4]} 27... Qh3+ {[%clk 0:00:54.2]}
28. Kg1 {[%clk 0:00:59.9]} 28... Nf3+ {[%clk 0:00:52.3]} 29. Bxf3 {[%clk
0:00:57]} 29... exf3 {[%clk 0:00:53.2]} 0-1

[Event "Late-Titled-Tuesday-Blitz-September-26-2023"]
[Site "Chess.com"]
[Date "2023.09.26"]
[Round "6"]
[White "Rital44"]
[Black "dedpihto_v_kozhanom_palto"]
[Result "0-1"]
[WhiteElo "2515"]
[BlackElo "2694"]
[TimeControl "180+1"]
[EndTime "15:02:34 PDT"]
[Termination "dedpihto_v_kozhanom_palto won by resignation"]

1. d4 {[%clk 0:03:00.9]} 1... g6 {[%clk 0:02:47.7]} 2. e4 {[%clk 0:03:00.7]}
2... Bg7 {[%clk 0:02:48.1]} 3. Nc3 {[%clk 0:03:01.4]} 3... d6 {[%clk 0:02:48.8]}
4. f4 {[%clk 0:02:59.4]} 4... Nc6 {[%clk 0:02:48]} 5. d5 {[%clk 0:02:58.4]} 5...
Nd4 {[%clk 0:02:47.4]} 6. Nce2 {[%clk 0:02:49.4]} 6... c5 {[%clk 0:02:38.8]} 7.
Ng3 {[%clk 0:02:37.8]} 7... h5 {[%clk 0:02:38.7]} 8. h4 {[%clk 0:02:27.4]} 8...
Bg4 {[%clk 0:02:32.9]} 9. Qd2 {[%clk 0:02:27.8]} 9... e5 {[%clk 0:02:33.1]} 10.
f5 {[%clk 0:02:12.9]} 10... Bf6 {[%clk 0:02:08.3]} 11. Qf2 {[%clk 0:01:44.6]}
11... Bxh4 {[%clk 0:02:06.5]} 12. Rxh4 {[%clk 0:01:40]} 12... Qxh4 {[%clk
0:02:06.1]} 13. Bd3 {[%clk 0:01:34.7]} 13... c4 {[%clk 0:01:54.9]} 14. Bxc4
{[%clk 0:01:33.4]} 14... Nxc2+ {[%clk 0:01:50.5]} 15. Qxc2 {[%clk 0:01:20.2]}
15... Qxg3+ {[%clk 0:01:49.9]} 16. Kf1 {[%clk 0:01:20.9]} 16... Kf8 {[%clk
0:01:27.1]} 17. Bd2 {[%clk 0:01:05.3]} 17... h4 {[%clk 0:01:19.7]} 18. Be1
{[%clk 0:01:02]} 18... Qf4+ {[%clk 0:01:16]} 19. Bf2 {[%clk 0:01:02.4]} 19...
gxf5 {[%clk 0:01:09.7]} 20. exf5 {[%clk 0:00:58.9]} 20... Rc8 {[%clk 0:01:08.6]}
21. b3 {[%clk 0:00:40.6]} 21... b5 {[%clk 0:01:06.4]} 22. Rc1 {[%clk 0:00:33.5]}
22... bxc4 {[%clk 0:01:06]} 23. bxc4 {[%clk 0:00:34.4]} 23... Nf6 {[%clk
0:01:01.1]} 24. c5 {[%clk 0:00:30.7]} 24... Rxc5 {[%clk 0:00:56.4]} 0-1

[Event "Late-Titled-Tuesday-Blitz-September-26-2023"]
[Site "Chess.com"]
[Date "2023.09.26"]
[Round "6"]
[White "Mesa_1"]
[Black "valemava"]
[Result "1-0"]
[WhiteElo "2623"]
[BlackElo "2403"]
[TimeControl "180+1"]
[EndTime "15:02:35 PDT"]
[Termination "Mesa_1 won by resignation"]

1. d4 {[%clk 0:03:00.9]} 1... c6 {[%clk 0:02:58.8]} 2. e4 {[%clk 0:03:00.1]}
2... d5 {[%clk 0:02:57.5]} 3. e5 {[%clk 0:03:00.8]} 3... c5 {[%clk 0:02:57.5]}
4. dxc5 {[%clk 0:02:59.7]} 4... Nc6 {[%clk 0:02:57.9]} 5. Nf3 {[%clk 0:02:56.2]}
5... Bg4 {[%clk 0:02:53.2]} 6. Bb5 {[%clk 0:02:56.5]} 6... Qc7 {[%clk
0:02:52.2]} 7. Qxd5 {[%clk 0:02:51.3]} 7... Bxf3 {[%clk 0:02:45]} 8. Qxf3 {[%clk
0:02:45.8]} 8... Qxe5+ {[%clk 0:02:44.3]} 9. Be3 {[%clk 0:02:44]} 9... Rc8
{[%clk 0:02:40.9]} 10. Nc3 {[%clk 0:02:36.6]} 10... Nf6 {[%clk 0:02:37.2]} 11.
O-O-O {[%clk 0:02:36.7]} 11... e6 {[%clk 0:02:34.9]} 12. Rhe1 {[%clk 0:02:37.1]}
12... Bxc5 {[%clk 0:02:21.5]} 13. Bh6 {[%clk 0:02:36.9]} 13... Qh5 {[%clk
0:01:41.9]} 14. Qxh5 {[%clk 0:02:36.1]} 14... Nxh5 {[%clk 0:01:41.5]} 15. Be3
{[%clk 0:02:36.8]} 15... Bxe3+ {[%clk 0:01:40.7]} 16. Rxe3 {[%clk 0:02:37.7]}
16... O-O {[%clk 0:01:39]} 17. Rd7 {[%clk 0:02:36.5]} 17... a6 {[%clk
0:01:37.1]} 18. Be2 {[%clk 0:02:34.3]} 18... Nf4 {[%clk 0:01:28.6]} 19. Rxb7
{[%clk 0:02:31.3]} 19... Nxg2 {[%clk 0:01:23.3]} 20. Rg3 {[%clk 0:02:31.4]}
20... Nf4 {[%clk 0:01:22.7]} 21. Bxa6 {[%clk 0:02:32.1]} 21... Na5 {[%clk
0:01:19.3]} 22. Rb4 {[%clk 0:02:27.7]} 22... Rc6 {[%clk 0:01:18.1]} 23. Rxf4
{[%clk 0:02:21.9]} 23... Rxa6 {[%clk 0:01:17.3]} 24. Ra4 {[%clk 0:02:22.6]}
24... Raa8 {[%clk 0:01:16.2]} 25. b4 {[%clk 0:02:19.2]} 25... Nc4 {[%clk
0:01:14.6]} 26. Rxa8 {[%clk 0:02:20.1]} 26... Rxa8 {[%clk 0:01:14]} 27. Rg4
{[%clk 0:02:16.3]} 27... Ne5 {[%clk 0:01:07.8]} 28. Re4 {[%clk 0:02:12.8]} 28...
Nd7 {[%clk 0:00:59.7]} 29. a4 {[%clk 0:02:11.4]} 29... Kf8 {[%clk 0:00:57]} 30.
a5 {[%clk 0:02:10.4]} 30... Ke7 {[%clk 0:00:56.9]} 31. Kb2 {[%clk 0:02:08.4]}
31... Rb8 {[%clk 0:00:51.9]} 32. Ka3 {[%clk 0:02:06.1]} 32... f6 {[%clk
0:00:49.2]} 33. Rc4 {[%clk 0:02:00.9]} 33... Kd6 {[%clk 0:00:45.6]} 34. b5
{[%clk 0:01:59.6]} 34... Nc5 {[%clk 0:00:41.1]} 35. b6 {[%clk 0:01:54.8]} 35...
f5 {[%clk 0:00:39.4]} 36. Kb4 {[%clk 0:01:53.7]} 36... Na6+ {[%clk 0:00:37.4]}
37. Kb5 {[%clk 0:01:53.7]} 37... Ra8 {[%clk 0:00:33.9]} 38. b7 {[%clk
0:01:42.3]} 38... Rb8 {[%clk 0:00:19.3]} 39. Kxa6 {[%clk 0:01:39.9]} 39... e5
{[%clk 0:00:18.6]} 40. Ka7 {[%clk 0:01:37.5]} 1-0

[Event "Late-Titled-Tuesday-Blitz-September-26-2023"]
[Site "Chess.com"]
[Date "2023.09.26"]
[Round "6"]
[White "Taran2004"]
[Black "korason34"]
[Result "0-1"]
[WhiteElo "2446"]
[BlackElo "2648"]
[TimeControl "180+1"]
[EndTime "15:02:40 PDT"]
[Termination "korason34 won by resignation"]

1. e4 {[%clk 0:02:47.9]} 1... c5 {[%clk 0:02:57.5]} 2. Nf3 {[%clk 0:02:48.1]}
2... d6 {[%clk 0:02:58.1]} 3. d4 {[%clk 0:02:48.5]} 3... cxd4 {[%clk 0:02:59]}
4. Qxd4 {[%clk 0:02:48.5]} 4... a6 {[%clk 0:02:57.3]} 5. c4 {[%clk 0:02:44.8]}
5... Nc6 {[%clk 0:02:57.9]} 6. Qd3 {[%clk 0:02:45.4]} 6... Nf6 {[%clk 0:02:58]}
7. Nc3 {[%clk 0:02:46]} 7... e6 {[%clk 0:02:55.4]} 8. Be3 {[%clk 0:02:45.6]}
8... Be7 {[%clk 0:02:55.7]} 9. h3 {[%clk 0:02:45.3]} 9... O-O {[%clk 0:02:55.6]}
10. Be2 {[%clk 0:02:45.5]} 10... b6 {[%clk 0:02:55.3]} 11. Nd4 {[%clk
0:02:43.5]} 11... Ne5 {[%clk 0:02:54.3]} 12. Qd2 {[%clk 0:02:42.2]} 12... Bb7
{[%clk 0:02:54.7]} 13. f4 {[%clk 0:02:36.3]} 13... Ng6 {[%clk 0:02:54.3]} 14.
Bf3 {[%clk 0:02:34.9]} 14... Qc7 {[%clk 0:02:51.2]} 15. b3 {[%clk 0:02:32.3]}
15... Nh4 {[%clk 0:02:40.1]} 16. O-O {[%clk 0:02:26.4]} 16... e5 {[%clk
0:02:39.3]} 17. Nf5 {[%clk 0:02:09.2]} 17... Nxf5 {[%clk 0:02:37.6]} 18. exf5
{[%clk 0:02:09.6]} 18... e4 {[%clk 0:02:26.4]} 19. Bg4 {[%clk 0:02:02.7]} 19...
d5 {[%clk 0:02:18.9]} 20. cxd5 {[%clk 0:01:46.3]} 20... Rad8 {[%clk 0:02:04.5]}
21. Rac1 {[%clk 0:01:25.6]} 21... Bb4 {[%clk 0:01:43.7]} 22. Bd4 {[%clk
0:01:10.7]} 22... Qd6 {[%clk 0:01:40.9]} 23. Bxf6 {[%clk 0:01:03.9]} 23... Qxf6
{[%clk 0:01:41.8]} 24. Rfd1 {[%clk 0:00:51.5]} 24... Rc8 {[%clk 0:01:03.7]} 25.
Nxe4 {[%clk 0:00:32]} 25... Bxd2 {[%clk 0:01:03.1]} 26. Nxf6+ {[%clk 0:00:32.7]}
26... gxf6 {[%clk 0:01:03.5]} 27. Rxc8 {[%clk 0:00:32.2]} 27... Be3+ {[%clk
0:01:03.5]} 28. Kf1 {[%clk 0:00:32]} 28... Rxc8 {[%clk 0:01:04.1]} 29. d6 {[%clk
0:00:32.7]} 29... Bxf4 {[%clk 0:01:01.9]} 30. d7 {[%clk 0:00:31.3]} 30... Rd8
{[%clk 0:01:02.1]} 31. Bf3 {[%clk 0:00:28.4]} 31... Bxf3 {[%clk 0:01:01.3]} 32.
gxf3 {[%clk 0:00:29.3]} 32... Kf8 {[%clk 0:01:01.2]} 0-1